[Event "*** SCC Grand Prix: Titled Tuesday Blitz"]
[Site "Chess.com"]
[Date "2020.06.23"]
[Round "1"]
[White "Biranidun"]
[Black "Omk124"]
[Result "1-0"]
[WhiteElo "2734"]
[BlackElo "2384"]
[TimeControl "180+1"]
[EndTime "10:07:29 PDT"]
[Termination "Biranidun won by checkmate"]

1. e4 {[%clk 0:03:00.3]} 1... g6 {[%clk 0:02:59.2]} 2. d4 {[%clk 0:03:00.2]}
2... Bg7 {[%clk 0:02:58.8]} 3. Nc3 {[%clk 0:03:00.2]} 3... c6 {[%clk 0:02:59]}
4. f4 {[%clk 0:02:59.7]} 4... d5 {[%clk 0:02:58.8]} 5. e5 {[%clk 0:02:58.2]}
5... Nh6 {[%clk 0:02:59.3]} 6. Nf3 {[%clk 0:02:58.5]} 6... O-O {[%clk
0:02:56.3]} 7. Be3 {[%clk 0:02:56.9]} 7... f6 {[%clk 0:02:54.8]} 8. h3 {[%clk
0:02:56.6]} 8... fxe5 {[%clk 0:02:47.3]} 9. fxe5 {[%clk 0:02:51.5]} 9... Bf5
{[%clk 0:02:40.4]} 10. Qd2 {[%clk 0:02:49.8]} 10... Nf7 {[%clk 0:02:38.1]} 11.
g4 {[%clk 0:02:44.7]} 11... Be4 {[%clk 0:02:34.1]} 12. Nxe4 {[%clk 0:02:37.3]}
12... dxe4 {[%clk 0:02:35]} 13. Ng1 {[%clk 0:02:31.4]} 13... e6 {[%clk
0:01:41.5]} 14. Bg2 {[%clk 0:02:29.5]} 14... c5 {[%clk 0:01:41.9]} 15. c3 {[%clk
0:02:25]} 15... cxd4 {[%clk 0:01:40.7]} 16. cxd4 {[%clk 0:02:25.9]} 16... Nc6
{[%clk 0:01:37]} 17. Bxe4 {[%clk 0:02:23.8]} 17... Qh4+ {[%clk 0:01:34.3]} 18.
Bf2 {[%clk 0:02:13.3]} 18... Qg5 {[%clk 0:01:34.5]} 19. Nf3 {[%clk 0:02:04.3]}
19... Qxd2+ {[%clk 0:01:32.7]} 20. Kxd2 {[%clk 0:01:57.2]} 20... Rad8 {[%clk
0:01:28.5]} 21. Ke2 {[%clk 0:01:56.2]} 21... Rd7 {[%clk 0:01:13.8]} 22. Rac1
{[%clk 0:01:55]} 22... Nfd8 {[%clk 0:01:10.6]} 23. Be3 {[%clk 0:01:50]} 23...
Nb4 {[%clk 0:01:07.4]} 24. a3 {[%clk 0:01:46.8]} 24... Nd5 {[%clk 0:01:07.7]}
25. Rc8 {[%clk 0:01:20.3]} 25... Nc6 {[%clk 0:01:05.6]} 26. Rxf8+ {[%clk
0:01:19.6]} 26... Bxf8 {[%clk 0:01:06.1]} 27. Bd2 {[%clk 0:01:17.8]} 27... Nb6
{[%clk 0:00:55.6]} 28. Bc3 {[%clk 0:01:08.9]} 28... Ne7 {[%clk 0:00:53.6]} 29.
Ng5 {[%clk 0:01:06.5]} 29... Ned5 {[%clk 0:00:41.6]} 30. Nxe6 {[%clk 0:00:53.6]}
30... Be7 {[%clk 0:00:41.5]} 31. Bd2 {[%clk 0:00:47.8]} 31... Nc4 {[%clk
0:00:36.2]} 32. Bc1 {[%clk 0:00:41.8]} 32... Ndb6 {[%clk 0:00:27.7]} 33. Rd1
{[%clk 0:00:38]} 33... Na4 {[%clk 0:00:23.5]} 34. Rd3 {[%clk 0:00:19.3]} 34...
Ncxb2 {[%clk 0:00:22]} 35. Bxb2 {[%clk 0:00:19.5]} 35... Nxb2 {[%clk 0:00:22.4]}
36. Rb3 {[%clk 0:00:20.4]} 36... Nc4 {[%clk 0:00:22.7]} 37. Bxb7 {[%clk
0:00:17.1]} 37... Kf7 {[%clk 0:00:20.2]} 38. Nf4 {[%clk 0:00:11.5]} 38... Rxd4
{[%clk 0:00:20]} 39. Bd5+ {[%clk 0:00:11.1]} 39... Kg7 {[%clk 0:00:19.2]} 40.
Ne6+ {[%clk 0:00:11.4]} 40... Kh6 {[%clk 0:00:19.7]} 41. Nxd4 {[%clk 0:00:12.3]}
41... Nxa3 {[%clk 0:00:18.8]} 42. Rb7 {[%clk 0:00:10.7]} 42... Bc5 {[%clk
0:00:18]} 43. Nf3 {[%clk 0:00:10.7]} 43... a5 {[%clk 0:00:17.7]} 44. g5+ {[%clk
0:00:10.9]} 44... Kh5 {[%clk 0:00:17.6]} 45. Rxh7# {[%clk 0:00:11.8]} 1-0

[Event "*** SCC Grand Prix: Titled Tuesday Blitz"]
[Site "Chess.com"]
[Date "2020.06.23"]
[Round "1"]
[White "Kezin_Roman"]
[Black "Mikasinski"]
[Result "1-0"]
[WhiteElo "2779"]
[BlackElo "2399"]
[TimeControl "180+1"]
[EndTime "10:07:31 PDT"]
[Termination "Kezin_Roman won on time"]

1. d4 {[%clk 0:03:00.1]} 1... Nf6 {[%clk 0:02:59.5]} 2. c4 {[%clk 0:02:59.6]}
2... g6 {[%clk 0:02:56.8]} 3. Nc3 {[%clk 0:02:58.8]} 3... Bg7 {[%clk 0:02:57.2]}
4. Nf3 {[%clk 0:02:59.2]} 4... O-O {[%clk 0:02:52.2]} 5. Bg5 {[%clk 0:02:59.2]}
5... d6 {[%clk 0:02:50.4]} 6. e3 {[%clk 0:02:59.4]} 6... c5 {[%clk 0:02:49]} 7.
d5 {[%clk 0:02:59.2]} 7... Bf5 {[%clk 0:02:47.5]} 8. Nd2 {[%clk 0:02:59]} 8...
h6 {[%clk 0:02:46.6]} 9. Bh4 {[%clk 0:02:59.3]} 9... g5 {[%clk 0:02:46.8]} 10.
Bg3 {[%clk 0:02:59.8]} 10... Nbd7 {[%clk 0:02:46.9]} 11. Be2 {[%clk 0:03:00.1]}
11... Bh7 {[%clk 0:02:45.8]} 12. O-O {[%clk 0:03:00]} 12... a6 {[%clk
0:02:30.2]} 13. a4 {[%clk 0:02:55.9]} 13... Ne8 {[%clk 0:02:22.8]} 14. a5 {[%clk
0:02:54.1]} 14... f5 {[%clk 0:02:22]} 15. f4 {[%clk 0:02:52.7]} 15... Nef6
{[%clk 0:02:07]} 16. Kh1 {[%clk 0:02:51.7]} 16... Qe8 {[%clk 0:01:51.3]} 17. Rb1
{[%clk 0:02:24.5]} 17... Rb8 {[%clk 0:01:31.8]} 18. b4 {[%clk 0:02:22]} 18...
cxb4 {[%clk 0:01:32.7]} 19. Rxb4 {[%clk 0:02:22.9]} 19... Ng4 {[%clk 0:01:25.1]}
20. Bxg4 {[%clk 0:02:19.1]} 20... Bxc3 {[%clk 0:01:23.5]} 21. Bh5 {[%clk
0:02:19.5]} 21... Bg6 {[%clk 0:01:12.4]} 22. Bxg6 {[%clk 0:02:19.5]} 22... Qxg6
{[%clk 0:01:13.3]} 23. Ra4 {[%clk 0:02:14.9]} 23... Nc5 {[%clk 0:01:08.7]} 24.
Ra2 {[%clk 0:02:14.1]} 24... Bxd2 {[%clk 0:01:06.9]} 25. Qxd2 {[%clk 0:02:13.5]}
25... Ne4 {[%clk 0:01:06.5]} 26. Qe1 {[%clk 0:02:13.6]} 26... Rbc8 {[%clk
0:01:01.7]} 27. Rc2 {[%clk 0:02:10.8]} 27... Rc5 {[%clk 0:00:57.1]} 28. Qe2
{[%clk 0:02:10.6]} 28... Rfc8 {[%clk 0:00:52.1]} 29. Rb1 {[%clk 0:02:09.7]}
29... Rxa5 {[%clk 0:00:48.7]} 30. Be1 {[%clk 0:02:06.9]} 30... Rac5 {[%clk
0:00:36.4]} 31. Rxb7 {[%clk 0:02:04.8]} 31... R8c7 {[%clk 0:00:34.2]} 32. Rb8+
{[%clk 0:02:03.6]} 32... Rc8 {[%clk 0:00:33.9]} 33. Rb7 {[%clk 0:01:58.8]} 33...
R8c7 {[%clk 0:00:33.7]} 34. Rb6 {[%clk 0:01:59.4]} 34... gxf4 {[%clk 0:00:32.7]}
35. exf4 {[%clk 0:01:58.5]} 35... a5 {[%clk 0:00:30.4]} 36. Ra6 {[%clk
0:01:56.7]} 36... Qf6 {[%clk 0:00:25.9]} 37. Rxa5 {[%clk 0:01:50.1]} 37... Rxa5
{[%clk 0:00:22.8]} 38. Bxa5 {[%clk 0:01:51]} 38... Qh4 {[%clk 0:00:19]} 39. Be1
{[%clk 0:01:42.7]} 39... Qxf4 {[%clk 0:00:18.4]} 40. g3 {[%clk 0:01:34.6]} 40...
Qe5 {[%clk 0:00:16.1]} 41. Kg2 {[%clk 0:01:34.6]} 41... Kh7 {[%clk 0:00:13.3]}
42. Ra2 {[%clk 0:01:32.6]} 42... Nf6 {[%clk 0:00:09.8]} 43. Qxe5 {[%clk
0:01:19.3]} 43... dxe5 {[%clk 0:00:10.7]} 44. Ra4 {[%clk 0:01:20]} 44... Ng4
{[%clk 0:00:10.4]} 45. Bd2 {[%clk 0:01:18.2]} 45... e4 {[%clk 0:00:10.5]} 46.
Bf4 {[%clk 0:01:17.3]} 46... Rc8 {[%clk 0:00:09.7]} 47. h3 {[%clk 0:01:15.1]}
47... Nf6 {[%clk 0:00:07.9]} 48. Kf2 {[%clk 0:01:15.7]} 48... Kg6 {[%clk
0:00:04.4]} 49. Ke3 {[%clk 0:01:15.6]} 49... Nh5 {[%clk 0:00:04.5]} 50. Be5
{[%clk 0:01:13.1]} 50... Nf6 {[%clk 0:00:03.8]} 51. Kd4 {[%clk 0:01:13.2]} 51...
Nd7 {[%clk 0:00:03.5]} 52. Ra6+ {[%clk 0:01:11.8]} 52... Kf7 {[%clk 0:00:02.4]}
53. Bf4 {[%clk 0:01:07.2]} 53... Nf6 {[%clk 0:00:01.7]} 54. c5 {[%clk
0:01:00.7]} 54... h5 {[%clk 0:00:01.7]} 55. c6 {[%clk 0:00:55.4]} 55... Rd8
{[%clk 0:00:01.9]} 56. c7 {[%clk 0:00:54.3]} 1-0

[Event "*** SCC Grand Prix: Titled Tuesday Blitz"]
[Site "Chess.com"]
[Date "2020.06.23"]
[Round "1"]
[White "FM_VS99"]
[Black "NTBT_DHS"]
[Result "0-1"]
[WhiteElo "2303"]
[BlackElo "2619"]
[TimeControl "180+1"]
[EndTime "10:07:31 PDT"]
[Termination "NTBT_DHS won by checkmate"]

1. c4 {[%clk 0:02:59.3]} 1... Nf6 {[%clk 0:02:59.6]} 2. g3 {[%clk 0:02:49.4]}
2... g6 {[%clk 0:03:00.5]} 3. Bg2 {[%clk 0:02:50.3]} 3... Bg7 {[%clk 0:03:00.7]}
4. Nf3 {[%clk 0:02:50.9]} 4... d6 {[%clk 0:02:53.8]} 5. d4 {[%clk 0:02:40.7]}
5... O-O {[%clk 0:02:46.2]} 6. O-O {[%clk 0:02:40.3]} 6... Nc6 {[%clk
0:02:45.6]} 7. Nc3 {[%clk 0:02:38.7]} 7... a6 {[%clk 0:02:45.6]} 8. d5 {[%clk
0:02:28.5]} 8... Na5 {[%clk 0:02:44.9]} 9. Nd2 {[%clk 0:02:28.1]} 9... c5 {[%clk
0:02:44.4]} 10. dxc6 {[%clk 0:02:24.2]} 10... Nxc6 {[%clk 0:02:42.7]} 11. Nb3
{[%clk 0:02:18.2]} 11... Be6 {[%clk 0:02:39.8]} 12. Nd5 {[%clk 0:02:18.1]} 12...
Rc8 {[%clk 0:02:38.5]} 13. Be3 {[%clk 0:02:16.8]} 13... Ne5 {[%clk 0:02:33.2]}
14. Bb6 {[%clk 0:01:42.5]} 14... Qd7 {[%clk 0:02:30.6]} 15. Bd4 {[%clk
0:01:35.2]} 15... Nxc4 {[%clk 0:02:26.5]} 16. Bxf6 {[%clk 0:01:26.9]} 16... exf6
{[%clk 0:02:22.3]} 17. Qd4 {[%clk 0:01:22.8]} 17... f5 {[%clk 0:02:16.9]} 18.
Nf6+ {[%clk 0:01:21.6]} 18... Bxf6 {[%clk 0:02:15.8]} 19. Qxf6 {[%clk
0:01:21.1]} 19... b5 {[%clk 0:02:08.3]} 20. Rad1 {[%clk 0:01:19.3]} 20... Rfe8
{[%clk 0:02:07.5]} 21. h4 {[%clk 0:01:04.6]} 21... Qe7 {[%clk 0:02:01.5]} 22.
Qd4 {[%clk 0:01:02.7]} 22... h5 {[%clk 0:01:56.5]} 23. Nd2 {[%clk 0:00:58]}
23... Nxd2 {[%clk 0:01:50.5]} 24. Rxd2 {[%clk 0:00:57.6]} 24... Bxa2 {[%clk
0:01:42.2]} 25. Ra1 {[%clk 0:00:57.1]} 25... Bc4 {[%clk 0:01:33.7]} 26. Rxa6
{[%clk 0:00:54.6]} 26... Bxe2 {[%clk 0:01:33.4]} 27. Rxd6 {[%clk 0:00:52.5]}
27... Rc4 {[%clk 0:01:28.8]} 28. Qb6 {[%clk 0:00:45.1]} 28... f4 {[%clk
0:01:26.2]} 29. Bd5 {[%clk 0:00:40.5]} 29... Rc1+ {[%clk 0:01:25.5]} 30. Kh2
{[%clk 0:00:37.9]} 30... fxg3+ {[%clk 0:01:21.5]} 31. fxg3 {[%clk 0:00:37.8]}
31... Kg7 {[%clk 0:01:02.4]} 32. Bxf7 {[%clk 0:00:35.7]} 32... Qxf7 {[%clk
0:00:56.3]} 33. Rd7 {[%clk 0:00:34.8]} 33... Re7 {[%clk 0:00:52]} 34. Qd4+
{[%clk 0:00:29.4]} 34... Kh7 {[%clk 0:00:43.2]} 35. Rd8 {[%clk 0:00:28.1]} 35...
Qg7 {[%clk 0:00:37.9]} 36. Qf4 {[%clk 0:00:23.8]} 36... Rf1 {[%clk 0:00:34]} 37.
Qg5 {[%clk 0:00:19.3]} 37... Bf3 {[%clk 0:00:33.2]} 38. g4 {[%clk 0:00:17.4]}
38... hxg4 {[%clk 0:00:25.4]} 39. h5 {[%clk 0:00:15.9]} 39... Rh1+ {[%clk
0:00:22.8]} 40. Kg3 {[%clk 0:00:16]} 40... Rxh5 {[%clk 0:00:23.7]} 41. Rh2
{[%clk 0:00:09.6]} 41... Rxh2 {[%clk 0:00:19.9]} 42. Kxh2 {[%clk 0:00:10.5]}
42... Qxb2+ {[%clk 0:00:19.5]} 43. Kg3 {[%clk 0:00:09.3]} 43... Qg2+ {[%clk
0:00:19.6]} 44. Kf4 {[%clk 0:00:05.8]} 44... Qh2# {[%clk 0:00:20.5]} 0-1

[Event "*** SCC Grand Prix: Titled Tuesday Blitz"]
[Site "Chess.com"]
[Date "2020.06.23"]
[Round "1"]
[White "MaxVavulin"]
[Black "AlanTate"]
[Result "1-0"]
[WhiteElo "2566"]
[BlackElo "2182"]
[TimeControl "180+1"]
[EndTime "10:07:33 PDT"]
[Termination "MaxVavulin won on time"]

1. e4 {[%clk 0:03:00.9]} 1... e5 {[%clk 0:03:00.1]} 2. Nf3 {[%clk 0:03:00.6]}
2... Nc6 {[%clk 0:02:59.7]} 3. Bb5 {[%clk 0:03:01]} 3... Nf6 {[%clk 0:02:59.4]}
4. d3 {[%clk 0:02:59.5]} 4... Bc5 {[%clk 0:02:59.6]} 5. c3 {[%clk 0:02:53.5]}
5... d5 {[%clk 0:02:59.1]} 6. Nbd2 {[%clk 0:02:43]} 6... O-O {[%clk 0:02:49.5]}
7. O-O {[%clk 0:02:41.4]} 7... dxe4 {[%clk 0:02:42.6]} 8. dxe4 {[%clk
0:02:40.3]} 8... Qe7 {[%clk 0:02:39.4]} 9. Qe2 {[%clk 0:02:20.7]} 9... a5 {[%clk
0:02:38.9]} 10. Nc4 {[%clk 0:02:17.1]} 10... Na7 {[%clk 0:01:48.5]} 11. Ncxe5
{[%clk 0:01:46.7]} 11... Nxb5 {[%clk 0:01:46.9]} 12. Qxb5 {[%clk 0:01:47.4]}
12... Nxe4 {[%clk 0:01:47]} 13. Bf4 {[%clk 0:01:38]} 13... Qf6 {[%clk
0:00:49.3]} 14. Nd3 {[%clk 0:01:33.8]} 14... Bb6 {[%clk 0:00:36]} 15. Rae1
{[%clk 0:01:29.7]} 15... Nd6 {[%clk 0:00:29.5]} 16. Qa4 {[%clk 0:01:20.7]} 16...
Bf5 {[%clk 0:00:20.3]} 17. Bg5 {[%clk 0:01:18.9]} 17... Qg6 {[%clk 0:00:15]} 18.
Nf4 {[%clk 0:01:18.7]} 18... Bc2 {[%clk 0:00:09.6]} 19. Nxg6 {[%clk 0:00:56.7]}
19... Bxa4 {[%clk 0:00:09.7]} 20. Nxf8 {[%clk 0:00:57.5]} 20... Rxf8 {[%clk
0:00:10]} 21. b3 {[%clk 0:00:53.8]} 21... Bb5 {[%clk 0:00:02.4]} 22. c4 {[%clk
0:00:53.5]} 22... Nxc4 {[%clk 0:00:02.5]} 23. bxc4 {[%clk 0:00:53]} 23... Bxc4
{[%clk 0:00:03.4]} 24. Re4 {[%clk 0:00:44.4]} 24... Bxf1 {[%clk 0:00:02.9]} 25.
Kxf1 {[%clk 0:00:45]} 25... f6 {[%clk 0:00:02.8]} 26. Be3 {[%clk 0:00:44]} 26...
Bxe3 {[%clk 0:00:02.2]} 27. Rxe3 {[%clk 0:00:44.4]} 27... Rf7 {[%clk 0:00:01.7]}
28. Ke2 {[%clk 0:00:36.4]} 28... Kf8 {[%clk 0:00:02]} 29. Nd4 {[%clk 0:00:35.7]}
29... Rd7 {[%clk 0:00:02.3]} 30. Ne6+ {[%clk 0:00:35.1]} 30... Kf7 {[%clk
0:00:02.7]} 31. Nc5 {[%clk 0:00:35.4]} 31... Rd5 {[%clk 0:00:01.6]} 32. Nxb7
{[%clk 0:00:35.9]} 32... Rb5 {[%clk 0:00:01.9]} 33. Nd8+ {[%clk 0:00:36]} 33...
Kg6 {[%clk 0:00:02.5]} 34. Rg3+ {[%clk 0:00:31.7]} 34... Kf5 {[%clk 0:00:02.7]}
35. Rxg7 {[%clk 0:00:29.7]} 35... Rb2+ {[%clk 0:00:02.8]} 36. Kf3 {[%clk
0:00:30.1]} 36... Rxa2 {[%clk 0:00:02.2]} 37. Rxc7 {[%clk 0:00:22.6]} 37... a4
{[%clk 0:00:02.5]} 38. Rc5+ {[%clk 0:00:20.2]} 38... Kg6 {[%clk 0:00:02]} 39.
Ne6 {[%clk 0:00:19.8]} 39... h6 {[%clk 0:00:01.4]} 40. Nf4+ {[%clk 0:00:18.9]}
40... Kf7 {[%clk 0:00:01.9]} 41. Rc7+ {[%clk 0:00:19.5]} 41... Ke8 {[%clk
0:00:02.4]} 42. Ra7 {[%clk 0:00:20.1]} 42... a3 {[%clk 0:00:02.2]} 43. Nd5
{[%clk 0:00:19.7]} 43... Rd2 {[%clk 0:00:02]} 44. Nxf6+ {[%clk 0:00:18.6]} 44...
Kd8 {[%clk 0:00:02.6]} 45. Rxa3 {[%clk 0:00:18.8]} 1-0

[Event "*** SCC Grand Prix: Titled Tuesday Blitz"]
[Site "Chess.com"]
[Date "2020.06.23"]
[Round "1"]
[White "TigrVShlyape"]
[Black "Karacsonyi_Gellert"]
[Result "0-1"]
[WhiteElo "2909"]
[BlackElo "2471"]
[TimeControl "180+1"]
[EndTime "10:07:36 PDT"]
[Termination "Karacsonyi_Gellert won on time"]

1. d4 {[%clk 0:03:00.9]} 1... Nf6 {[%clk 0:02:58.3]} 2. Nf3 {[%clk 0:03:00.8]}
2... d5 {[%clk 0:02:57.6]} 3. Bf4 {[%clk 0:03:00.1]} 3... c5 {[%clk 0:02:56.6]}
4. e3 {[%clk 0:03:00.3]} 4... Nc6 {[%clk 0:02:55.9]} 5. Nbd2 {[%clk 0:02:59.3]}
5... e6 {[%clk 0:02:54.8]} 6. c3 {[%clk 0:02:58.7]} 6... Be7 {[%clk 0:02:54.9]}
7. Bd3 {[%clk 0:02:55.1]} 7... O-O {[%clk 0:02:54.5]} 8. Ne5 {[%clk 0:02:53.5]}
8... Nd7 {[%clk 0:02:53.7]} 9. h4 {[%clk 0:02:43.6]} 9... Ndxe5 {[%clk
0:02:49.2]} 10. dxe5 {[%clk 0:02:42.9]} 10... f5 {[%clk 0:02:42.8]} 11. Nf3
{[%clk 0:02:34.1]} 11... b6 {[%clk 0:02:40.8]} 12. Ng5 {[%clk 0:02:29.5]} 12...
Qe8 {[%clk 0:02:39.6]} 13. g4 {[%clk 0:02:11.6]} 13... Bxg5 {[%clk 0:02:29.1]}
14. hxg5 {[%clk 0:02:10.4]} 14... g6 {[%clk 0:02:27.4]} 15. Qf3 {[%clk
0:02:06.8]} 15... Qf7 {[%clk 0:02:17.4]} 16. O-O-O {[%clk 0:02:02]} 16... Bb7
{[%clk 0:02:14.1]} 17. gxf5 {[%clk 0:01:57.9]} 17... exf5 {[%clk 0:02:11.9]} 18.
Rh6 {[%clk 0:01:45.1]} 18... d4 {[%clk 0:02:11.6]} 19. Qe2 {[%clk 0:01:42.3]}
19... Na5 {[%clk 0:02:03.3]} 20. exd4 {[%clk 0:01:41.3]} 20... cxd4 {[%clk
0:02:03.8]} 21. e6 {[%clk 0:01:41.5]} 21... Qe7 {[%clk 0:01:57.6]} 22. Bb5
{[%clk 0:01:21.5]} 22... Rfd8 {[%clk 0:01:42.7]} 23. Qe5 {[%clk 0:01:15.4]}
23... dxc3 {[%clk 0:01:36.8]} 24. Rd7 {[%clk 0:01:11.6]} 24... cxb2+ {[%clk
0:01:33.6]} 25. Kb1 {[%clk 0:01:07.8]} 25... Be4+ {[%clk 0:01:28]} 26. Qxe4
{[%clk 0:01:04.1]} 26... Qxd7 {[%clk 0:01:12.8]} 27. exd7 {[%clk 0:01:02.3]}
27... fxe4 {[%clk 0:01:12.6]} 28. Bc7 {[%clk 0:00:56.3]} 28... a6 {[%clk
0:01:06]} 29. Ba4 {[%clk 0:00:48.3]} 29... b5 {[%clk 0:01:02.5]} 30. Bxa5 {[%clk
0:00:42.7]} 30... bxa4 {[%clk 0:01:02.2]} 31. Bxd8 {[%clk 0:00:41.7]} 31... Rxd8
{[%clk 0:01:03.1]} 32. Kxb2 {[%clk 0:00:38]} 32... Rxd7 {[%clk 0:01:02.8]} 33.
Rh4 {[%clk 0:00:35.3]} 33... Rd2+ {[%clk 0:01:01.7]} 34. Ka3 {[%clk 0:00:32.1]}
34... Rxf2 {[%clk 0:01:02.1]} 35. Rxe4 {[%clk 0:00:32.3]} 35... Rg2 {[%clk
0:00:59.7]} 36. Re5 {[%clk 0:00:32]} 36... Kf7 {[%clk 0:00:59.8]} 37. Ra5 {[%clk
0:00:26.1]} 37... Re2 {[%clk 0:00:39.7]} 38. Rxa4 {[%clk 0:00:18]} 38... Re5
{[%clk 0:00:38.6]} 39. Rh4 {[%clk 0:00:17.5]} 39... Kg7 {[%clk 0:00:35.5]} 40.
Rg4 {[%clk 0:00:17.9]} 40... h5 {[%clk 0:00:33.5]} 41. gxh6+ {[%clk 0:00:17.6]}
41... Kxh6 {[%clk 0:00:34.4]} 42. Kb4 {[%clk 0:00:16.9]} 42... g5 {[%clk
0:00:33.9]} 43. a4 {[%clk 0:00:16]} 43... Kh5 {[%clk 0:00:32.7]} 44. Rd4 {[%clk
0:00:13.6]} 44... g4 {[%clk 0:00:31.7]} 45. Rd6 {[%clk 0:00:04.5]} 45... g3
{[%clk 0:00:28.3]} 0-1

[Event "*** SCC Grand Prix: Titled Tuesday Blitz"]
[Site "Chess.com"]
[Date "2020.06.23"]
[Round "1"]
[White "Harry_Rakkel"]
[Black "tan275"]
[Result "1/2-1/2"]
[WhiteElo "2564"]
[BlackElo "2253"]
[TimeControl "180+1"]
[EndTime "10:07:36 PDT"]
[Termination "Game drawn by repetition"]

1. d4 {[%clk 0:02:59.5]} 1... d5 {[%clk 0:02:59.7]} 2. Bf4 {[%clk 0:02:58.1]}
2... Nf6 {[%clk 0:02:59]} 3. e3 {[%clk 0:02:56.8]} 3... c5 {[%clk 0:02:58.4]} 4.
c3 {[%clk 0:02:54.9]} 4... Nc6 {[%clk 0:02:57.5]} 5. Nf3 {[%clk 0:02:51.8]} 5...
Qb6 {[%clk 0:02:54.9]} 6. Qb3 {[%clk 0:02:49.6]} 6... c4 {[%clk 0:02:53.5]} 7.
Qxb6 {[%clk 0:02:42.5]} 7... axb6 {[%clk 0:02:52.8]} 8. Na3 {[%clk 0:02:40.5]}
8... Ra5 {[%clk 0:02:34.7]} 9. Bc7 {[%clk 0:02:09.1]} 9... Nd7 {[%clk
0:02:33.1]} 10. Nc2 {[%clk 0:02:02.8]} 10... e6 {[%clk 0:02:25.9]} 11. a3 {[%clk
0:02:00.6]} 11... Ra6 {[%clk 0:02:12]} 12. e4 {[%clk 0:01:48.2]} 12... b5 {[%clk
0:02:08.2]} 13. exd5 {[%clk 0:01:39.7]} 13... exd5 {[%clk 0:02:09.1]} 14. O-O-O
{[%clk 0:01:38.8]} 14... Be7 {[%clk 0:02:06.7]} 15. Be2 {[%clk 0:01:33]} 15...
O-O {[%clk 0:02:05.5]} 16. Rhe1 {[%clk 0:01:33.4]} 16... Nb6 {[%clk 0:02:00.4]}
17. Ne5 {[%clk 0:01:27.8]} 17... Nxe5 {[%clk 0:01:54.2]} 18. dxe5 {[%clk
0:01:27]} 18... Bf5 {[%clk 0:01:46.7]} 19. Nd4 {[%clk 0:01:22.8]} 19... Bd7
{[%clk 0:01:35.5]} 20. Bxb6 {[%clk 0:01:15.2]} 20... Rxb6 {[%clk 0:01:34.7]} 21.
f4 {[%clk 0:01:14.9]} 21... Ra6 {[%clk 0:01:27.5]} 22. Bf3 {[%clk 0:01:14.2]}
22... Bc6 {[%clk 0:01:23.5]} 23. Nf5 {[%clk 0:01:10.3]} 23... Bxa3 {[%clk
0:00:40.1]} 24. bxa3 {[%clk 0:01:07.9]} 24... Rxa3 {[%clk 0:00:39.8]} 25. Kb2
{[%clk 0:01:05.5]} 25... Rb3+ {[%clk 0:00:35.9]} 26. Kc2 {[%clk 0:01:05]} 26...
b4 {[%clk 0:00:33.5]} 27. Ne7+ {[%clk 0:00:57.2]} 27... Kh8 {[%clk 0:00:32.1]}
28. Nxd5 {[%clk 0:00:50.6]} 28... Bxd5 {[%clk 0:00:29.5]} 29. Bxd5 {[%clk
0:00:49.4]} 29... Rxc3+ {[%clk 0:00:29.6]} 30. Kd2 {[%clk 0:00:47.1]} 30... Ra8
{[%clk 0:00:24.1]} 31. Ke2 {[%clk 0:00:45.9]} 31... Ra2+ {[%clk 0:00:22.5]} 32.
Rd2 {[%clk 0:00:45.5]} 32... Rxd2+ {[%clk 0:00:20.8]} 33. Kxd2 {[%clk
0:00:44.5]} 33... Rd3+ {[%clk 0:00:21]} 34. Kc2 {[%clk 0:00:44.1]} 34... Rxd5
{[%clk 0:00:21.9]} 35. e6 {[%clk 0:00:39.3]} 35... fxe6 {[%clk 0:00:21]} 36.
Rxe6 {[%clk 0:00:40.2]} 36... Kg8 {[%clk 0:00:21.3]} 37. Rb6 {[%clk 0:00:39.1]}
37... b3+ {[%clk 0:00:20.4]} 38. Kc3 {[%clk 0:00:38]} 38... Rc5 {[%clk
0:00:19.7]} 39. Rxb7 {[%clk 0:00:36.6]} 39... Rc8 {[%clk 0:00:17.7]} 40. g4
{[%clk 0:00:35.5]} 40... g6 {[%clk 0:00:17.4]} 41. h4 {[%clk 0:00:35.2]} 41...
Rc6 {[%clk 0:00:15.6]} 42. f5 {[%clk 0:00:20.8]} 42... gxf5 {[%clk 0:00:15.2]}
43. gxf5 {[%clk 0:00:21.7]} 43... Rc8 {[%clk 0:00:15.1]} 44. f6 {[%clk
0:00:20.8]} 44... Rc6 {[%clk 0:00:14.7]} 45. Rg7+ {[%clk 0:00:19.6]} 45... Kh8
{[%clk 0:00:12.9]} 46. Rf7 {[%clk 0:00:19.7]} 46... Kg8 {[%clk 0:00:12.5]} 47.
Rg7+ {[%clk 0:00:19.5]} 47... Kh8 {[%clk 0:00:12.4]} 48. Rf7 {[%clk 0:00:19.3]}
48... Kg8 {[%clk 0:00:12.8]} 49. Rg7+ {[%clk 0:00:19]} 1/2-1/2